[Event "Susha Chess Rapid Women 2022"]
[Site "Shusha"]
[Date "2022.09.22"]
[Round "5.1"]
[White "Ozturk Orenli, Kubra"]
[Black "Mammadova, Gulnar"]
[Result "1-0"]
[ECO "A40"]
[WhiteElo "2319"]
[BlackElo "2382"]
[Annotator "TA"]
[PlyCount "143"]
[EventDate "2022.09.21"]
[EventType "tourn"]
[EventCountry "AZE"]
[SourceTitle "playchess.com"]
[Source "ChessBase"]
[SourceQuality "1"]
[TimeControl "900+10"]

{[%evp 11,143,47,35,0,21,19,26,9,5,12,18,0,11,-29,-25,-27,-46,-56,-11,-38,-12,-57,-44,-35,-22,-22,-17,-27,-25,-58,-43,-73,-17,-24,-21,-29,15,27,20,0,24,2,17,-21,-9,-66,0,-12,0,-15,57,59,104,15,21,-43,-44,-270,-256,-288,-274,-277,-270,-197,-36,-60,-49,-210,-210,-232,-217,-205,0,0,81,73,69,68,160,114,260,268,242,236,306,280,624,515,1137,996,1839,1429,1793,1775,1504,1442,2092,2040,29968,12832,12816,9399,29971,29974,29976,29977,29976,29978,29978,29978,29978,29979,29979,29980,29980,29981,29983,29984,29984,29985,29985,29986,29992,29993,29993,29994,29994,29993,29993,29994,29997,29995,29998,29999]} 1. d4 {[%emt 0:00:02]} g6 {[%emt 0:00:02]} 2. g3 {[%emt 0:00:36]} Bg7 {[%emt 0:00:04]} 3. Bg2 {[%emt 0:00:01]} d6 {[%emt 0:00:02]} 4. Nf3 {[%emt 0:00:14]} Nd7 {[%emt 0:00:10]} 5. O-O {[%emt 0:00:27]} e5 {[%emt 0:00:34]} 6. dxe5 {[%emt 0:02:25]} dxe5 {[%emt 0:00:40]} 7. Bg5 {[%emt 0:01:28] Prevents Qe7. A41: 1 d4 d6: Tartakower System and Modern Defence.} f6 {[%emt 0:00:16]} 8. Bd2 {[%emt 0:00:10]} Ne7 {[%emt 0:00:33]} 9. c4 {[%emt 0:00:16] White has an edge.} O-O {[%emt 0:01:14]} 10. Nc3 {[%emt 0:00:39] [#]} f5 $146 {[%emt 0:00:43]} ({Predecessor:} 10... Nc6 11. Nd5 Nc5 12. b4 Ne6 13. b5 Ncd4 14. Nxd4 exd4 15. Bb4 Re8 16. e3 dxe3 {0-1 (68) Hou,Y (2658)-Mammadova,G (2382) Chess.com INT 2021}) 11. e4 {[%emt 0:00:22]} f4 {[%emt 0:00:15]} 12. Qc1 {[%emt 0:01:43][%cal Rg3f4]} Nc5 {[%emt 0:00:43]} 13. Rd1 {[%emt 0:02:24][%cal Rd2f4]} Qe8 {[%emt 0:00:14]} 14. b4 {[%emt 0:00:10]} Ne6 {[%emt 0:00:30]} 15. Nd5 {[%emt 0:00:53]} g5 {[%emt 0:01:38] White should prevent ...Ng6.} 16. Nxe7+ {[%emt 0:00:19]} Qxe7 {[%emt 0:00:02]} 17. Bc3 {[%emt 0:00:19]} Nd8 {[%emt 0:00:42]} 18. Qb2 {[%emt 0:01:04][%cal Rf3e5]} Nf7 {[%emt 0:00:26]} 19. b5 {[%emt 0:01:15]} Qf6 {[%emt 0:00:23]} 20. Rd5 {[%emt 0:00:26][%cal Rf3e5]} Re8 {[%emt 0:00:09]} (20... Be6 {with more complications.} 21. Rxe5 Nxe5 22. Bxe5 Qh6) 21. Ne1 {[%emt 0:00:51]} b6 {[%emt 0:01:59]} (21... Be6 $17) 22. Nd3 $11 {[%emt 0:00:58]} f3 {[%emt 0:00:27]} 23. Bf1 {[%emt 0:00:05]} Bb7 {[%emt 0:00:08]} 24. Nb4 {[%emt 0:00:18]} Nd6 {[%emt 0:00:40][%cal Bf7d6,Bd6b7,Bb7c5,Bc5a4][%mdl 32]} (24... Bxd5 25. Nxd5 Qd6 26. Rd1 $11) 25. Re1 {[%emt 0:00:51]} Bxd5 {[%emt 0:00:40]} 26. Nxd5 {[%emt 0:00:01]} Qf7 {[%emt 0:00:01]} 27. Qb4 {[%emt 0:00:29][%mdl 1024] White has compensation.} Nb7 {[%emt 0:01:05]} 28. a4 {[%emt 0:00:11]} ({White should play} 28. Qb2 $11) 28... Bf8 {[%emt 0:01:00]} (28... Nc5 $15) 29. Qb2 {[%emt 0:00:02]} Bd6 {[%emt 0:00:08]} 30. Qd2 {[%emt 0:00:05]} Qg6 {[%emt 0:00:46]} (30... Qg7 $11) 31. Bh3 $1 $14 {[%emt 0:00:08]} Rf8 {[%emt 0:00:23] [#]} 32. Ne3 {[%emt 0:00:37] White has more active pieces.} (32. Bxe5 $1 $16 {[%mdl 512]} Qh6 33. Bf6 $1 {[%mdl 512]} (33. Nxc7 Bxc7 34. Qd5+ Rf7 $17) 33... Rxf6 34. Nxf6+ Qxf6 35. Qd5+ Kh8 36. Qxb7) 32... Nc5 $11 {[%emt 0:00:01]} (32... Qxe4 $2 33. Nf5 $1 {[%mdl 512]} Qxf5 34. Bxf5 Rxf5 35. Qd5+ Rf7 36. Qxb7 $18) 33. Qd5+ {[%emt 0:00:32]} (33. Bf5 $11 Qg7 34. Ra1) 33... Qf7 $15 {[%emt 0:00:07]} 34. Nf5 $2 {[%emt 0:00:12]} ({Better is} 34. Qc6 $15) 34... Qxd5 $19 {[%emt 0:00:14]} 35. exd5 {[%emt 0:00:05]} Nxa4 {[%emt 0:00:33]} 36. Bd2 {[%emt 0:00:06]} Nc5 {[%emt 0:00:53]} ({Inferior is} 36... Nb2 37. Bxg5 Bc5 38. Nh6+ Kh8 39. Ng4 $17) 37. Bxg5 {[%emt 0:00:06]} Rae8 $2 {[%emt 0:01:06]} (37... a5 $19 {White must now prevent ...a4.} 38. bxa6 Rxa6 39. Nxd6 cxd6) 38. Bg4 {[%emt 0:00:11]} e4 {[%emt 0:00:21]} 39. Nh6+ $2 {[%emt 0:00:14]} (39. h3 $15) 39... Kg7 $1 {[%emt 0:00:04]} 40. Nf5+ {[%emt 0:00:03]} Kg6 {[%emt 0:00:10]} 41. Nxd6 {[%emt 0:00:13]} Kxg5 $2 {[%emt 0:00:32]} (41... cxd6 $19 42. h4 Nd3) 42. Nxe8 $11 {[%emt 0:00:05][%cal Og4d7] aiming for Bd7!} Rxe8 {[%emt 0:00:01]} (42... Kxg4 $11 43. Nxc7 Kf5) 43. Bxf3 $1 $19 {[%emt 0:00:08][%mdl 4096] Endgame KRB-KRN} Kf5 {[%emt 0:00:12]} 44. Bg2 {[%emt 0:00:09]} h5 {[%emt 0:00:21] Black is on the road to losing.} (44... Ke5 $14) 45. Re3 {[%emt 0:00:04]} (45. Ra1 $142) 45... Ke5 {[%emt 0:00:15] [#]} (45... Ra8 $16 {keeps fighting.}) 46. Bxe4 $1 $18 {[%emt 0:00:36][%mdl 512]} Kd4 {[%emt 0:00:32]} (46... Nxe4 $2 47. f3 Kd6 48. Rxe4 $18 (48. fxe4 Kc5 $14)) 47. Bg6 {[%emt 0:00:08][%csl LRe8,LRh5]} Rxe3 {[%emt 0:00:22]} 48. fxe3+ {[%emt 0:00:01]} Kxe3 $2 {[%emt 0:00:01]} (48... Kxc4 49. h4 (49. Bxh5 Kxb5 50. h4 a5 $16) 49... Kxd5 50. Bxh5 a6) 49. Bxh5 {[%emt 0:00:01] Threatens to win with h4. KB-KN} Ne4 {[%emt 0:00:01]} (49... Kd4 $142 50. Be2 Ke3) 50. Kg2 {[%emt 0:00:20]} Nd6 {[%emt 0:00:04]} 51. h4 {[%emt 0:00:11]} Nxc4 {[%emt 0:00:01]} 52. Bg6 {[%emt 0:00:12]} Kd4 {[%emt 0:00:16]} 53. h5 {[%emt 0:00:10] And now h6 would win.} Ke5 {[%emt 0:00:01]} 54. Kf3 {[%emt 0:00:09]} Nd6 {[%emt 0:00:18]} 55. h6 {[%emt 0:00:07]} Kf6 {[%emt 0:00:02]} 56. Bd3 {[%emt 0:00:10] Kf4 would kill now.} Nf7 {[%emt 0:00:34]} 57. h7 {[%emt 0:00:01] White mates.} Ke5 {[%emt 0:00:28]} 58. Bg6 {[%emt 0:00:15]} Nh8 {[%emt 0:00:04]} 59. Be4 {[%emt 0:00:02]} Nf7 {[%emt 0:00:00]} 60. Ke3 {[%emt 0:00:19]} Kf6 {[%emt 0:00:14]} 61. Kf4 {[%emt 0:00:03]} Kg7 {[%emt 0:00:04]} 62. g4 {[%emt 0:00:02][%cal Bg3g4,Bg4g5,Bg5g6][%mdl 32]} Nd6 {[%emt 0:00:05] [#]} 63. Bd3 $1 {[%emt 0:00:10]} Nf7 {[%emt 0:00:02]} 64. g5 {[%emt 0:00:04]} Nd6 {[%emt 0:00:40]} 65. g6 {[%emt 0:00:02]} Nb7 {[%emt 0:00:09]} 66. Ke5 {[%emt 0:00:07]} Nc5 {[%emt 0:00:01]} 67. Bf5 {[%emt 0:00:01]} a6 {[%emt 0:00:13]} 68. bxa6 {[%emt 0:00:05]} Nxa6 {[%emt 0:00:01]} 69. Ke6 {[%emt 0:00:03]} Nc5+ {[%emt 0:00:32] [#]} 70. Ke7 $1 {[%emt 0:00:02]} Nb7 {[%emt 0:00:05]} 71. h8=Q+ {[%emt 0:00:14]} Kxh8 {[%emt 0:00:01]} 72. Kf8 {[%emt 0:00:01] Weighted Error Value: White=0.29 (precise) /Black=0.57} 1-0

[Event "Susha Chess Rapid Women 2022"]
[Site "Shusha"]
[Date "2022.09.22"]
[Round "5.2"]
[White "Arabidze, Meri"]
[Black "Efroimski, Marsel"]
[Result "0-1"]
[ECO "D32"]
[WhiteElo "2422"]
[BlackElo "2462"]
[Annotator "TA"]
[PlyCount "99"]
[EventDate "2022.09.21"]
[EventType "tourn"]
[EventCountry "AZE"]
[SourceTitle "playchess.com"]
[Source "ChessBase"]
[SourceQuality "1"]
[TimeControl "900+10"]

{[%evp 12,99,46,37,42,41,31,39,56,21,20,18,18,22,21,12,14,9,9,7,11,11,17,4,12,6,8,6,6,6,24,23,27,8,8,10,21,14,72,6,6,6,6,6,8,0,0,0,0,0,0,0,0,0,0,0,0,0,1,6,26,0,0,0,0,0,0,0,-2,-15,-15,-15,-17,-239,-239,-232,-232,-232,-232,-231,-224,-194,-194,-512,-385,-419,-412,-412,-408,-429]} 1. d4 {[%emt 0:00:02]} d5 {[%emt 0:00:01]} 2. c4 {[%emt 0:00:02]} e6 {[%emt 0:00:00][%cal Be7e6,Be6d5,Bd5d4][%mdl 32]} 3. Nc3 {[%emt 0:00:03]} c5 {[%emt 0:00:04]} 4. cxd5 {[%emt 0:00:06]} exd5 {[%emt 0:00:01]} 5. Nf3 {[%emt 0:00:09]} Nc6 {[%emt 0:00:01]} 6. dxc5 {[%emt 0:00:20]} d4 {[%emt 0:00:17]} 7. Na4 {[%emt 0:00:01]} Bxc5 {[%emt 0:00:10][%mdl 64] Decoy. D32: Tarrasch Defence: Sidelines and lines without g3.} 8. Nxc5 {[%emt 0:00:02]} Qa5+ {[%emt 0:00:01]} 9. Qd2 {[%emt 0:01:27]} Qxc5 {[%emt 0:00:04] White is slightly better.} 10. e3 {[%emt 0:00:01] now scores much better than the old 10.a3.} (10. a3 $5 {[%cal Rb2b4]}) 10... dxe3 {[%emt 0:00:17]} 11. Qxe3+ {[%emt 0:00:01]} Qxe3+ {[%emt 0:00:02]} 12. Bxe3 {[%emt 0:00:01]} Nge7 {[%emt 0:00:05]} 13. Bc4 {[%emt 0:00:31]} Bg4 {[%emt 0:01:08] [#]} 14. O-O $146 {[%emt 0:01:23]} ({Predecessor:} 14. Ng5 O-O 15. h3 Bh5 16. O-O Ne5 17. Bb3 Rfd8 18. g4 h6 19. Ne4 Bg6 20. Nc3 {½-½ (56) King,A (2283)-Buscar,M (2088) Chess.com INT 2021}) 14... Bxf3 {[%emt 0:00:04]} 15. gxf3 {[%emt 0:00:00]} O-O {[%emt 0:00:06]} 16. Rfd1 {[%emt 0:01:08]} Rfd8 {[%emt 0:00:30]} 17. a3 {[%emt 0:01:39]} h6 {[%emt 0:00:10]} 18. b4 {[%emt 0:00:08]} Ne5 {[%emt 0:01:48][%csl LRc4,LRf3]} 19. Be2 {[%emt 0:00:04]} Nd5 {[%emt 0:00:11]} 20. f4 {[%emt 0:01:30]} Nxe3 {[%emt 0:03:07]} 21. fxe3 {[%emt 0:00:03]} Nc6 {[%emt 0:00:06]} 22. Bf3 {[%emt 0:00:48]} Kf8 {[%emt 0:00:14]} 23. Kf2 {[%emt 0:00:14]} Ke7 {[%emt 0:00:05]} 24. Ke2 {[%emt 0:01:29]} Rac8 {[%emt 0:00:06]} (24... Rxd1 $11 {keeps the balance.} 25. Kxd1 (25. Rxd1 Rc8 $11) 25... g5) 25. h4 {[%emt 0:00:31]} (25. Rdc1 $16) 25... Rxd1 $11 {[%emt 0:00:48]} 26. Rxd1 {[%emt 0:00:01][%mdl 4096] Endgame KRB-KRN} Nd8 {[%emt 0:00:43]} 27. Bg4 {[%emt 0:01:46]} Rc2+ {[%emt 0:00:39]} 28. Kf3 {[%emt 0:00:04]} Rc3 {[%emt 0:00:16]} 29. Rd7+ {[%emt 0:02:10]} Ke8 {[%emt 0:00:02]} 30. Rd4 {[%emt 0:00:01]} Rxa3 {[%emt 0:01:08]} 31. Re4+ {[%emt 0:00:09]} Kf8 {[%emt 0:00:08]} 32. Bd7 {[%emt 0:00:24][%csl Gd7][%cal Re4e8]} Ne6 $1 {[%emt 0:00:31]} 33. Bxe6 {[%emt 0:00:29]} fxe6 {[%emt 0:00:03]} 34. Rxe6 {[%emt 0:00:00] KR-KR} Ra4 {[%emt 0:00:48]} 35. Re4 {[%emt 0:00:02]} b6 {[%emt 0:02:00]} 36. Rd4 {[%emt 0:01:20]} a5 {[%emt 0:00:33][%cal Ba7a5,Ba5b4,Bb4b3][%mdl 32]} 37. Ke4 {[%emt 0:01:29]} axb4 {[%emt 0:00:12]} 38. Kd5 {[%emt 0:00:34]} b5 {[%emt 0:00:36]} 39. Ke6 {[%emt 0:00:52][%cal Rd4d8]} Ke8 {[%emt 0:01:00] Inhibits Rd8+.} 40. Rd5 {[%emt 0:00:01]} b3 {[%emt 0:00:09]} 41. Rxb5 {[%emt 0:00:06][%cal Rb5b8]} Re4+ {[%emt 0:00:10]} 42. Kf5 $2 {[%emt 0:00:03] This costs White the game.} (42. Kd5 $11 Rxe3 43. Rb7) 42... Rxe3 $19 {[%emt 0:00:01] Threatens to win with ...Kd7.} 43. Rb7 {[%emt 0:00:42] [#]} Rg3 {[%emt 0:00:54]} 44. h5 {[%emt 0:00:20] [#]} Kd8 $1 {[%emt 0:00:08]} 45. Ke6 {[%emt 0:00:09]} Kc8 {[%emt 0:00:10]} 46. Rb4 {[%emt 0:00:02]} Kc7 {[%emt 0:00:03] Strongly threatening ...Kc6.} 47. Kf7 $2 {[%emt 0:00:12]} (47. Kd5) 47... Kc6 {[%emt 0:00:05]} 48. f5 {[%emt 0:00:02] Black is winning.} Kc5 {[%emt 0:00:07]} 49. Rb7 {[%emt 0:00:27]} Kc4 {[%emt 0:00:10] aiming for ...Rg5.} 50. Rc7+ {[%emt 0:00:06] Weighted Error Value: White=0.25 (precise) /Black=0.07 (flawless)} 0-1

[Event "Susha Chess Rapid Women 2022"]
[Site "Shusha"]
[Date "2022.09.22"]
[Round "5.3"]
[White "Dzagnidze, Nana"]
[Black "Beydullayeva, Govhar"]
[Result "1-0"]
[ECO "A21"]
[WhiteElo "2526"]
[BlackElo "2346"]
[Annotator "TA"]
[PlyCount "73"]
[EventDate "2022.09.21"]
[EventType "tourn"]
[EventCountry "AZE"]
[SourceTitle "playchess.com"]
[Source "ChessBase"]
[SourceQuality "1"]
[TimeControl "900+10"]

{[%evp 9,73,-14,16,14,20,-4,0,0,0,5,73,75,69,67,68,52,41,39,36,32,59,55,55,64,157,165,282,295,481,462,411,134,141,112,1014,1014,884,872,991,721,715,716,693,617,693,692,5502,799,755,731,1008,684,684,681,1283,590,592,558,584,584,695,684,719,675,627,609]} 1. c4 {[%emt 0:00:03]} e5 {[%emt 0:00:05]} 2. Nc3 {[%emt 0:00:03]} c5 {[%emt 0:00:01]} 3. Nf3 {[%emt 0:00:47]} Nc6 {[%emt 0:00:15]} 4. e3 {[%emt 0:00:08]} Nf6 {[%emt 0:00:20]} 5. b3 {[%emt 0:00:29]} d5 {[%emt 0:01:01]} 6. cxd5 {[%emt 0:00:07] A34: Symmetrical English: 2 Nc3, lines with ...d5.} Nxd5 {[%emt 0:00:01]} 7. Nxd5 {[%emt 0:01:44]} Qxd5 {[%emt 0:00:01]} 8. Bc4 {[%emt 0:00:09] The position is equal.} Qd8 {[%emt 0:01:22]} 9. Bb2 {[%emt 0:00:04] [#]} e4 $146 {[%emt 0:01:20]} (9... Bd6 $11) ({Predecessor:} 9... Bd6 10. Qb1 Qf6 11. Bd5 Bf5 12. Be4 Bxe4 13. Qxe4 Qg6 14. Qxg6 hxg6 15. Ke2 f6 {½-½ (47) Murey,J (2560)-Polgar,Z (2510) New York 1989}) 10. Ne5 $16 {[%emt 0:00:32]} Nxe5 {[%emt 0:00:08]} 11. Bxe5 {[%emt 0:00:03]} Qg5 {[%emt 0:00:23]} 12. Bb5+ {[%emt 0:00:12]} Bd7 {[%emt 0:00:12]} 13. Bxd7+ Kxd7 {[%emt 0:00:00]} 14. Bg3 {[%emt 0:00:26]} Rd8 {[%emt 0:01:37]} 15. b4 {[%emt 0:01:55]} cxb4 {[%emt 0:01:38]} 16. O-O {[%emt 0:01:44]} Bd6 {[%emt 0:00:53] [#]} ({Black should try} 16... Qd5 $14) 17. Rc1 $1 {[%emt 0:03:27]} Ke6 {[%emt 0:01:50]} (17... Qg6 {is a better defense.} 18. Bxd6 (18. Qa4+ Ke7 $16) 18... Qxd6) 18. Rc4 $18 {[%emt 0:01:21]} f5 {[%emt 0:00:58]} (18... Ke7 {was called for.} 19. Rxe4+ Kf8) 19. Qb3 {[%emt 0:00:50][%csl LRb4,LRe4]} Kf6 {[%emt 0:00:02]} 20. Bxd6 $2 $40 {[%mdl 128] White attacks with force.} (20. f3 $18 Bxg3 21. fxe4) 20... Rxd6 $16 21. Rc7 {[%emt 0:00:15]} Qh5 {[%emt 0:01:47][%mdl 8192] Prevents Qf7+. A mistake that costs the game.} (21... Kg6 $16) 22. Qb2+ $18 {[%emt 0:00:36][%mdl 64] [#] Skewer, Deflection. White is clearly winning.} Ke6 {[%emt 0:00:00]} 23. Qxg7 {[%emt 0:00:35] Re7+ would kill now.} Qe8 {[%emt 0:00:01] Against Re7+} 24. Rxb7 {[%emt 0:00:28]} Rg8 {[%emt 0:00:56]} 25. Qxh7 {[%emt 0:00:11]} Rh8 {[%emt 0:00:44]} 26. Qg7 {[%emt 0:00:07]} Rg8 {[%emt 0:00:01]} 27. Qb2 {[%emt 0:00:57]} Qh5 {[%emt 0:00:18][%cal Og8g2]} 28. g3 {[%emt 0:00:49]} (28. Qb3+ $142 Rd5 29. Rc1) 28... Rh8 {[%emt 0:02:47]} 29. h4 {[%emt 0:00:03]} Rc8 {[%emt 0:00:52]} 30. Rb5 {[%emt 0:00:24] White wants to mate with Qe5+.} Kf7 {[%emt 0:00:23]} 31. Qxb4 {[%emt 0:00:15]} Rg6 {[%emt 0:00:10]} 32. Qxe4 {[%emt 0:00:51]} fxe4 {[%emt 0:00:10]} 33. Rxh5 {[%emt 0:00:03]} Rc2 {[%emt 0:00:01]} 34. Ra5 {[%emt 0:00:16]} a6 {[%emt 0:00:10]} 35. Rb1 {[%emt 0:00:22]} Rxd2 {[%emt 0:00:02]} 36. Rb7+ {[%emt 0:00:01]} Kg8 {[%emt 0:00:03]} 37. Re5 {[%emt 0:00:15] Weighted Error Value: White=0.87/Black=0.53} 1-0

[Event "Susha Chess Rapid Women 2022"]
[Site "Shusha"]
[Date "2022.09.22"]
[Round "5.4"]
[White "Mammadzada, Gunay"]
[Black "Zawadzka, Jolanta"]
[Result "0-1"]
[ECO "E04"]
[WhiteElo "2473"]
[BlackElo "2401"]
[Annotator "TA"]
[PlyCount "52"]
[EventDate "2022.09.21"]
[EventType "tourn"]
[EventCountry "AZE"]
[SourceTitle "playchess.com"]
[Source "ChessBase"]
[SourceQuality "1"]
[TimeControl "900+10"]

{[%evp 12,52,8,14,20,19,12,3,20,-3,0,11,8,-2,95,53,39,41,96,85,83,89,122,109,136,131,125,117,195,125,175,172,219,229,225,250,230,229,286,244,322,-316,-325]} 1. d4 {[%emt 0:00:08]} d5 {[%emt 0:00:02]} 2. c4 {[%emt 0:00:02]} e6 {[%emt 0:00:02]} 3. g3 {[%emt 0:00:01]} Nf6 {[%emt 0:00:05]} 4. Bg2 {[%emt 0:00:02]} dxc4 {[%emt 0:00:13]} 5. Nf3 {[%emt 0:00:02]} a6 {[%emt 0:00:12]} 6. Ne5 {[%emt 0:00:16]} c5 {[%emt 0:00:50]} 7. Na3 {[%emt 0:00:18]} cxd4 {[%emt 0:00:14] [#] aiming for ...Qa5+. E04: Open Catalan: 5 Nf3.} 8. Naxc4 {[%emt 0:00:01]} Bc5 {[%emt 0:00:14]} 9. O-O {[%emt 0:00:24][%cal Ob2b4]} O-O {[%emt 0:00:06] The position is equal.} 10. Bg5 {[%emt 0:01:58]} h6 {[%emt 0:00:32]} 11. Bxf6 {[%emt 0:00:14]} Qxf6 {[%emt 0:00:08] [#]} 12. Rc1 $146 {[%emt 0:00:01]} ({Predecessor:} 12. Qb3 Nd7 13. Nxd7 Bxd7 14. Qxb7 Bb5 15. Rac1 Rab8 16. Qe4 Rfd8 17. Ne5 Bd6 18. Nc6 Bxc6 19. Rxc6 Rxb2 20. Rxa6 {½-½ (32) Postny,E (2585)-Mastrovasilis,D (2580) Rio Achaea 2018}) 12... Nc6 {[%emt 0:05:29]} (12... Nd7 $11 13. Nd3 Be7) 13. Nxc6 {[%emt 0:03:17]} bxc6 {[%emt 0:00:02]} 14. Na5 {[%emt 0:00:01][%cal Bc4a5,Ba5c6,Bc6d4][%mdl 32]} Bb6 {[%emt 0:00:49]} (14... Be7 $1 $14) 15. Nxc6 $16 {[%emt 0:00:22] Strongly threatening Qb3.} Bd7 {[%emt 0:04:58]} 16. Qb3 {[%emt 0:00:19]} Bd8 {[%emt 0:00:26] [#]} 17. Nxd4 $1 {[%emt 0:05:15][%mdl 512]} Rc8 {[%emt 0:00:02]} (17... Ra7 18. e3) 18. Rxc8 {[%emt 0:00:13]} Bxc8 {[%emt 0:00:01]} 19. Nc6 {[%emt 0:00:19]} Bc7 {[%emt 0:00:30]} (19... Bd7 $16 {was called for.}) 20. Rc1 {[%emt 0:00:23]} (20. Qb4 $18) 20... e5 {[%emt 0:00:45]} (20... Bd7 $16 {was necessary.} 21. Be4 Bxc6 22. Rxc6 Be5) 21. Bd5 {[%emt 0:01:08]} Bh3 {[%emt 0:00:34]} (21... Bd6 $142 22. a4 Re8) 22. Qb7 $18 {[%emt 0:00:14][%csl LRa6,LRc7]} Bd6 {[%emt 0:00:12]} 23. Qxa6 {[%emt 0:00:08]} e4 {[%emt 0:00:05]} 24. Qb6 {[%emt 0:00:17]} ({Don't do} 24. Bxe4 Re8) 24... Re8 {[%emt 0:00:31]} 25. Qd4 {[%emt 0:01:05]} Qg5 {[%emt 0:01:05]} 26. Qe3 {[%emt 0:00:19][%mdl 8192]} Qxd5 {[%emt 0:00:08] What a bad dream for White.  Weighted Error Value: White=0.35/Black=0.34} 0-1

[Event "Susha Chess Rapid Women 2022"]
[Site "Shusha"]
[Date "2022.09.22"]
[Round "5.5"]
[White "Fataliyeva, Ulviyya"]
[Black "Balajayeva, Khanim"]
[Result "1/2-1/2"]
[ECO "D26"]
[WhiteElo "2408"]
[BlackElo "2379"]
[Annotator "TA"]
[PlyCount "109"]
[EventDate "2022.09.21"]
[EventType "tourn"]
[EventCountry "AZE"]
[SourceTitle "playchess.com"]
[Source "ChessBase"]
[SourceQuality "1"]
[TimeControl "900+10"]

{[%evp 10,109,19,20,35,10,10,11,23,10,26,18,23,11,0,0,20,0,0,0,0,0,0,-35,0,0,0,0,0,0,10,-12,0,0,0,0,14,-48,-25,-32,-14,-14,-12,-23,-4,0,0,-16,-21,-27,0,-20,0,0,40,0,0,-18,0,0,7,-47,-12,-38,-44,-91,-91,-91,-98,-132,-119,-158,-112,-112,-93,-91,-112,-107,-79,-77,-70,-174,-106,-115,-23,-32,0,-84,-83,-110,-87,-75,-79,-181,-18,-96,0,-176,0,-114,0,-164]} 1. d4 {[%emt 0:00:03]} d5 {[%emt 0:00:01]} 2. Nf3 {[%emt 0:00:02]} Nf6 {[%emt 0:00:01]} 3. c4 {[%emt 0:00:02]} dxc4 {[%emt 0:00:02]} 4. e3 {[%emt 0:00:02]} e6 {[%emt 0:00:00]} 5. Bxc4 {[%emt 0:00:03]} a6 {[%emt 0:00:01]} 6. O-O {[%emt 0:00:16]} Nbd7 {[%emt 0:00:02] D26: Queen's Gambit Accepted: 4 e3 e6 5 Bxc5 c5 sidelines.} 7. Nbd2 {[%emt 0:00:26]} b5 {[%emt 0:00:02]} 8. Be2 {[%emt 0:00:37]} Bb7 {[%emt 0:00:09]} 9. a4 {[%emt 0:00:10]} b4 {[%emt 0:00:05]} 10. Nc4 {[%emt 0:01:22] 10.Nc4 is better than 10.b3.} c5 {[%emt 0:00:06]} 11. Nfe5 {[%emt 0:00:42]} Be7 {[%emt 0:01:19]} 12. Bf3 {[%emt 0:00:18]} Qc7 {[%emt 0:00:54] [#]} 13. Bd2 $146 {[%emt 0:04:44]} ({Predecessor:} 13. Bxb7 Qxb7 14. dxc5 Nxc5 15. Nd6+ Bxd6 16. Qxd6 Qd5 17. Qxd5 Nxd5 18. f3 f6 19. Nc4 {½-½ (63) Moranda,W (2622)-Janik,I (2500) Opole 2021}) 13... O-O {[%emt 0:01:11]} 14. Rc1 {[%emt 0:00:02]} Rac8 {[%emt 0:02:22]} 15. Qe2 {[%emt 0:02:19]} Bxf3 {[%emt 0:01:23]} 16. Qxf3 {[%emt 0:00:01]} cxd4 {[%emt 0:00:08]} 17. exd4 {[%emt 0:00:17]} Nd5 {[%emt 0:00:07]} 18. Qg3 {[%emt 0:01:35][%cal Oc4a5]} N7f6 {[%emt 0:01:59]} 19. Rfe1 {[%emt 0:00:02]} ({But not} 19. Bh6 Nh5 20. Qh3 gxh6 $15) 19... Rfd8 {[%emt 0:00:38]} 20. Bh6 {[%emt 0:01:06][%csl Gh6][%cal Rg3g7]} Bf8 {[%emt 0:00:17]} 21. Bg5 {[%emt 0:00:18]} Qa7 {[%emt 0:04:19]} 22. Na5 {[%emt 0:00:59] Black must now prevent Nac6.} Rxc1 {[%emt 0:00:02]} ({Don't take} 22... Qxd4 23. Nac6 Qxb2 24. Nxd8 Rxd8 25. Qd3 $16) 23. Bxc1 {[%emt 0:00:45]} (23. Rxc1 $11 Ne4 24. Qh4 Nxg5 25. Qxg5) 23... Rc8 {[%emt 0:00:18]} (23... Qc7 $5 {[%cal Rc7a5]} 24. Nb3 Nd7 $11) 24. Qd3 {[%emt 0:00:38]} Nb6 {[%emt 0:00:37]} 25. b3 {[%emt 0:01:39]} Rc3 {[%emt 0:00:22]} 26. Qd1 {[%emt 0:00:18]} Nfd5 {[%emt 0:00:23]} 27. Bd2 {[%emt 0:00:10]} Rc8 {[%emt 0:00:06]} 28. h4 {[%emt 0:00:08]} Nd7 {[%emt 0:00:26]} 29. Nac4 {[%emt 0:00:16]} N7f6 {[%emt 0:00:25]} 30. Be3 {[%emt 0:00:01]} h6 {[%emt 0:00:18]} 31. Qf3 {[%emt 0:00:02]} Qa8 {[%emt 0:00:49]} 32. Bc1 {[%emt 0:00:42]} Nc3 {[%emt 0:00:19]} 33. Qg3 {[%emt 0:00:10]} Nce4 {[%emt 0:00:11]} 34. Qd3 {[%emt 0:00:01] Nb6 is the strong threat.} Rd8 {[%emt 0:00:11]} 35. Be3 {[%emt 0:00:17]} (35. g4 $11 Bc5 36. Be3) 35... Qd5 {[%emt 0:00:06]} 36. Rc1 {[%emt 0:00:13]} Nc3 {[%emt 0:00:30]} 37. f3 {[%emt 0:00:02]} (37. Nf3 $15 {is superior.}) 37... Nd7 $17 {[%emt 0:00:19]} 38. Nxd7 {[%emt 0:00:16]} Qxd7 {[%emt 0:00:01]} 39. Ne5 {[%emt 0:00:20]} Qd5 {[%emt 0:00:22]} 40. Qc2 {[%emt 0:00:06]} Rc8 {[%emt 0:00:14]} ({Better is} 40... Be7 41. Nd3 a5) 41. Nc4 {[%emt 0:00:14]} Qh5 {[%emt 0:00:17]} 42. Qf2 {[%emt 0:00:03]} Be7 {[%emt 0:00:08]} 43. g3 {[%emt 0:00:04]} Nd5 {[%emt 0:00:11]} 44. Bd2 {[%emt 0:00:16]} Bf6 {[%emt 0:00:05]} 45. Re1 {[%emt 0:00:01]} (45. Kg2 $1 $15) 45... Qg6 {[%emt 0:00:07]} (45... Qf5 $1 $19 {[%cal Rf5d3]} 46. Re4 (46. Nd6 $2 Qd3 $19) 46... Nc3 47. Bxc3 bxc3) 46. Re4 {[%emt 0:00:02]} Ne7 {[%emt 0:00:23]} (46... Bd8 $17 47. Ne5 Qf5) 47. Kh2 {[%emt 0:00:27]} h5 {[%emt 0:00:08][%cal Oa6a5]} 48. Bf4 {[%emt 0:00:02]} (48. Bxb4 $11 {remains equal.} Nd5 49. Bc5) 48... Nd5 {[%emt 0:00:19]} 49. Be5 {[%emt 0:00:09]} Nc3 {[%emt 0:00:07]} 50. Re1 {[%emt 0:00:01]} Be7 {[%emt 0:00:09][%cal Oc3a4]} 51. Qd2 {[%emt 0:00:17] [#]} (51. Rc1 $17 {might work better.}) 51... Nd5 $2 {[%emt 0:00:16]} (51... Nxa4 $1 $19 {[%cal Oa4b6][%mdl 512] Threatens to win with ...Nb6!} 52. Rc1 Nc3) 52. Re4 {[%emt 0:00:23]} (52. Qe2 $11) 52... Nc3 {[%emt 0:00:13]} (52... Rd8 $17) 53. Re1 $19 {[%emt 0:00:01] [#]} Nd5 {[%emt 0:00:00]} ({Black should try} 53... Nxa4 $1 $19 {[%cal Oa4b6][%mdl 512]} 54. Rc1 Nc3) 54. Re4 $17 {[%emt 0:00:07]} Nc3 {[%emt 0:00:12]} (54... Rd8 $17) 55. Re1 {[%emt 0:00:01] Weighted Error Value: White=0.19 (very precise) /Black=0.23 (precise)} 1/2-1/2